bitfinex/quotes_BTCUSD_20250114
["timestamp","ask_amount","ask_price","bid_price","bid_amount"]
[1736868064846,0.02868021,96767.0,96766.0,0.00094125]
[1736868065045,0.02816724,96767.0,96766.0,0.00094125]
[1736868065502,0.023,96767.0,96766.0,0.00094125]
[1736868065833,0.02816724,96767.0,96766.0,0.00094125]
[1736868066845,0.03484745,96767.0,96766.0,0.00094125]
[1736868067058,0.02968021,96767.0,96766.0,0.00094125]
[1736868067263,0.02868021,96767.0,96766.0,0.00394125]
[1736868067488,0.00568021,96767.0,96766.0,0.00394125]
[1736868067703,0.00768021,96767.0,96766.0,0.00094125]
[1736868067906,0.002,96767.0,96766.0,0.00094125]
[1736868068108,0.00567137,96767.0,96766.0,0.00094125]
[1736868068281,0.15129158,96794.0,96766.0,0.00094125]
[1736868068282,0.00516724,96777.0,96766.0,0.00094125]
[1736868068486,0.00764484,96767.0,96766.0,0.00094125]
[1736868068647,0.002,96767.0,96766.0,0.12553918]
[1736868069131,0.025,96767.0,96766.0,0.00094125]
[1736868069320,0.03068021,96767.0,96766.0,0.00094125]
[1736868069718,0.03384745,96767.0,96766.0,0.00094125]
[1736868070129,0.03384745,96767.0,96766.0,0.00294125]
[1736868070375,0.02868021,96767.0,96766.0,0.00094125]
[1736868070572,0.02868021,96767.0,96766.0,0.10516817]
[1736868070573,0.00568021,96767.0,96766.0,0.10516817]
[1736868070794,0.00768021,96767.0,96766.0,0.10516817]
[1736868070998,0.002,96767.0,96766.0,0.10516817]
[1736868071172,0.002,96767.0,96766.0,0.20516817]
[1736868071475,0.002,96767.0,96766.0,0.28496817]
[1736868071889,0.00516724,96798.0,96776.0,0.1]
[1736868072058,0.00516724,96794.0,96784.0,0.20276881]
[1736868072795,0.023,96793.0,96784.0,0.20276881]
[1736868073004,0.00516724,96794.0,96784.0,0.23346838]
[1736868073158,0.00179487,96804.0,96784.0,0.23346838]
[1736868073373,0.00179487,96804.0,96795.0,0.0798]
[1736868073571,0.00179487,96804.0,96796.0,0.0473]
[1736868073796,0.00516724,96796.0,96795.0,0.0798]
[1736868074034,0.00179487,96804.0,96795.0,0.0798]
[1736868074163,0.00516724,96796.0,96795.0,0.0798]
[1736868074364,0.00179487,96804.0,96795.0,0.0798]
[1736868074609,0.001,96798.0,96795.0,0.0818]
[1736868074801,0.001,96798.0,96795.0,0.08188695]
[1736868075023,0.00658501,96797.0,96795.0,0.08188695]
[1736868075359,0.00658501,96797.0,96795.0,0.1046366]
[1736868075537,0.023,96803.0,96795.0,0.1046366]
[1736868075946,0.023,96796.0,96795.0,0.1026366]
[1736868076152,0.023,96796.0,96795.0,0.08288695]
[1736868076358,0.023,96796.0,96795.0,0.00308695]
[1736868076513,0.03477008,96796.0,96795.0,0.00108695]
[1736868076742,0.138997,96796.0,96795.0,0.00208695]
[1736868077095,0.388997,96796.0,96795.0,0.00108695]
[1736868077241,0.488997,96796.0,96795.0,0.00108695]
[1736868077445,0.02816724,96767.0,96746.0,0.09256662]
[1736868077647,0.02816724,96767.0,96750.0,0.20276881]
[1736868077648,0.13239416,96767.0,96750.0,0.20276881]
[1736868077879,0.13893762,96767.0,96766.0,0.00100361]
[1736868078450,0.28893762,96767.0,96766.0,0.00100361]
[1736868078832,0.28893762,96767.0,96766.0,0.00200361]
[1736868079251,0.28893762,96767.0,96766.0,0.00100361]
[1736868079653,0.29493762,96767.0,96766.0,0.00100361]
[1736868080130,0.29093762,96767.0,96766.0,0.00100361]
[1736868080488,0.29493762,96767.0,96766.0,0.00100361]
[1736868080687,0.173,96766.0,96745.0,7e-05]
[1736868080921,0.02816724,96757.0,96756.0,0.01486381]
[1736868081088,0.13239416,96757.0,96756.0,0.01486381]
[1736868081285,0.02816724,96757.0,96756.0,0.01486381]
[1736868081490,0.03458105,96757.0,96756.0,0.01486381]
[1736868081735,0.02816724,96757.0,96756.0,0.01486381]
[1736868081914,0.03458105,96757.0,96756.0,0.01486381]
[1736868082111,0.13980797,96757.0,96756.0,0.01486381]
[1736868082368,0.03558105,96757.0,96756.0,0.01486381]
[1736868082665,0.02941381,96757.0,96756.0,0.01486381]
[1736868082876,0.03458105,96757.0,96756.0,0.01486381]
[1736868083075,0.03041381,96757.0,96756.0,0.01486381]
[1736868083390,0.03558105,96757.0,96756.0,0.01486381]
[1736868083531,0.03041381,96757.0,96756.0,0.01486381]
[1736868083734,0.03558105,96757.0,96756.0,0.01486381]
[1736868084835,0.03458105,96757.0,96756.0,0.01486381]
[1736868085056,0.02941381,96757.0,96756.0,0.01486381]
[1736868085255,0.03458105,96757.0,96756.0,0.01486381]
[1736868085478,0.02941381,96757.0,96756.0,0.01486381]
[1736868085695,0.02941381,96757.0,96756.0,0.01586381]
[1736868086007,0.00741381,96757.0,96756.0,0.11909073]
[1736868086216,0.00741381,96757.0,96756.0,0.01486381]
[1736868086421,0.001,96757.0,96756.0,0.01586381]
[1736868086865,0.00735706,96757.0,96756.0,0.01586381]
[1736868087068,0.001,96757.0,96756.0,0.01586381]
[1736868087279,0.0073714,96757.0,96756.0,0.12009073]
[1736868087627,0.00516724,96768.0,96756.0,0.09776381]
[1736868087831,0.023,96765.0,96756.0,0.09876381]
[1736868088070,0.023,96757.0,96756.0,0.09876381]
[1736868088240,0.00637707,96764.0,96756.0,0.09876381]
[1736868088444,0.023,96763.0,96756.0,0.09776381]
[1736868088619,0.15,96786.0,96756.0,0.09776381]
[1736868088827,0.10422692,96792.0,96756.0,0.09776381]
[1736868088828,0.00638724,96762.0,96756.0,0.09876381]
[1736868089004,0.00129169,96795.0,96758.0,0.206699]
[1736868089201,0.09365657,96796.0,96767.0,0.0819]
[1736868089408,0.00535465,96794.0,96782.0,0.206649]
[1736868089611,0.00179508,96796.0,96782.0,0.10422692]
[1736868089834,0.00516724,96793.0,96780.0,0.20276881]
[1736868090040,0.00129129,96795.0,96780.0,0.20276881]
[1736868090041,0.00516724,96783.0,96780.0,0.20276881]
[1736868090206,0.023,96782.0,96780.0,0.02075609]
[1736868090611,0.00179508,96796.0,96782.0,0.002]
[1736868090612,0.00516724,96793.0,96782.0,0.002]
[1736868090982,0.00516724,96793.0,96783.0,0.30699573]
[1736868091735,0.023,96792.0,96783.0,0.30699573]
[1736868092335,0.023,96792.0,96783.0,0.30799573]
[1736868092540,0.023,96792.0,96783.0,0.20376881]
[1736868092921,0.023,96787.0,96783.0,0.20376881]
[1736868093513,0.00516724,96792.0,96783.0,0.20676881]
[1736868093718,0.00516724,96788.0,96783.0,0.20376881]
[1736868093930,0.023,96787.0,96783.0,0.20376881]
[1736868094436,0.023,96787.0,96783.0,0.20276881]
[1736868094634,0.002,96792.0,96784.0,0.10422692]
[1736868094870,0.002,96792.0,96785.0,0.206643]
[1736868095087,0.002,96792.0,96786.0,0.18612692]
[1736868095490,0.001,96787.0,96786.0,0.18612692]
[1736868096107,0.00179508,96796.0,96786.0,0.18612692]
[1736868096426,0.00179508,96796.0,96786.0,0.18812692]
[1736868096759,0.00179508,96796.0,96786.0,0.25848769]
[1736868096973,0.00179508,96796.0,96787.0,0.513276]
[1736868097173,0.00179508,96796.0,96786.0,0.26548769]
[1736868097174,0.00179508,96796.0,96795.0,0.1]
[1736868097385,4.00179487,96804.0,96803.0,0.1]
[1736868097592,3.77081094,96804.0,96803.0,0.78488691]
[1736868098002,3.728472,96804.0,96803.0,0.87971967]
[1736868098214,3.638551,96804.0,96803.0,0.87971967]
[1736868098425,3.41979302,96804.0,96803.0,0.87971967]
[1736868098635,2.70974492,96804.0,96803.0,0.87971967]
[1736868098845,2.5215392,96804.0,96803.0,0.75471967]
[1736868099048,2.48687806,96804.0,96803.0,2.25471967]
[1736868099251,2.30128879,96804.0,96803.0,2.25471967]
[1736868099422,2.27264084,96804.0,96803.0,2.49333967]
[1736868099655,0.32483834,96804.0,96803.0,2.42680667]
[1736868099888,0.0474,96870.0,96814.0,0.34483276]
[1736868100129,0.0474,96870.0,96814.0,0.45613968]
[1736868100374,0.00194428,96815.0,96814.0,0.45643968]
[1736868101078,0.00194428,96815.0,96814.0,0.46543968]
[1736868101250,0.00194428,96815.0,96814.0,0.51198365]
[1736868102042,0.00294428,96815.0,96814.0,0.51498365]
[1736868102197,0.00294428,96815.0,96814.0,0.50598365]
[1736868102559,0.00294428,96815.0,96814.0,0.51198365]
[1736868102800,0.00294428,96815.0,96814.0,0.11352692]
[1736868103019,0.00294428,96815.0,96814.0,0.0033]
[1736868103221,0.00294428,96815.0,96814.0,0.0123]
[1736868103222,0.00394428,96815.0,96814.0,0.0123]
[1736868103406,0.00394428,96815.0,96814.0,0.012]
[1736868103989,0.00394428,96815.0,96814.0,0.003]
[1736868104184,0.00194428,96815.0,96806.0,0.3394248]
[1736868104363,0.00194428,96815.0,96807.0,0.20845384]
[1736868104574,0.00194428,96815.0,96814.0,0.005]
[1736868105005,0.00194428,96815.0,96807.0,0.10422692]
[1736868105617,0.00294428,96815.0,96814.0,0.009]
[1736868105839,0.023,96814.0,96806.0,0.001]
[1736868106057,0.00516724,96805.0,96800.0,0.20276881]
[1736868106266,0.023,96804.0,96800.0,0.20306881]
[1736868106395,0.02816724,96801.0,96800.0,0.0003]
[1736868106847,0.02816724,96801.0,96790.0,0.20276881]
[1736868106848,0.00516724,96791.0,96790.0,0.20276881]
[1736868107021,0.023,96791.0,96783.0,0.0008548]
[1736868107239,0.00516724,96790.0,96784.0,0.10422692]
[1736868107857,0.001,96805.0,96783.0,0.0008548]
[1736868107858,0.00516724,96784.0,96783.0,0.0008548]
[1736868108178,0.30726724,96772.0,96771.0,0.01918566]
[1736868108375,0.41149416,96772.0,96771.0,0.01918566]
[1736868108652,0.41857416,96772.0,96745.0,7e-05]
[1736868108808,0.32606724,96757.0,96745.0,7e-05]
[1736868109107,0.44552006,96757.0,96745.0,7e-05]
[1736868109311,0.27816724,96750.0,96745.0,7e-05]
[1736868109469,0.63844006,96750.0,96745.0,7e-05]
[1736868109898,0.63844006,96750.0,96710.0,0.20276881]
[1736868109899,0.10936724,96730.0,96710.0,0.20276881]
[1736868110124,0.10936724,96730.0,96729.0,0.00100365]
[1736868111078,0.21359416,96730.0,96729.0,0.00100365]
[1736868111292,0.26149416,96730.0,96729.0,0.00100365]
[1736868111702,0.26249416,96730.0,96729.0,0.00100365]
[1736868111901,0.023,96729.0,96691.0,0.15]
[1736868112159,0.023,96718.0,96698.0,0.00135331]
[1736868112724,0.1291,96730.0,96698.0,0.00135331]
[1736868112725,0.00516724,96707.0,96698.0,0.00135331]
[1736868112930,0.023,96706.0,96698.0,0.00135331]
[1736868114071,0.02816724,96707.0,96698.0,0.00135331]
[1736868114234,0.02816724,96707.0,96698.0,0.00235331]
[1736868115477,0.02816724,96707.0,96698.0,0.00135331]
[1736868115850,0.00516724,96706.0,96698.0,0.00135331]
[1736868116074,0.023,96702.0,96698.0,0.00135331]
[1736868116677,0.023,96700.0,96698.0,0.00135331]
[1736868117730,0.023,96699.0,96698.0,0.00135331]
[1736868117955,0.02816724,96699.0,96698.0,0.00135331]
[1736868118230,0.023,96699.0,96698.0,0.00135331]
[1736868118375,0.02816724,96699.0,96698.0,0.00135331]
[1736868118788,0.02916724,96699.0,96698.0,0.00135331]
[1736868119392,0.023,96699.0,96698.0,0.00235331]
[1736868119730,0.00516724,96707.0,96698.0,0.10658023]
[1736868119962,0.00516724,96704.0,96699.0,0.10422692]
[1736868120163,0.00516724,96711.0,96698.0,0.00235331]
[1736868120367,0.00516724,96710.0,96700.0,0.41802594]
[1736868120608,0.0812,96717.0,96701.0,0.206823]
[1736868120911,0.00516724,96724.0,96701.0,0.206823]
[1736868120912,0.0822,96749.0,96711.0,0.1]
[1736868121108,0.00516724,96740.0,96720.0,0.31379902]
[1736868121316,0.0822,96749.0,96721.0,0.10422692]
[1736868121544,0.00516724,96732.0,96706.0,0.15]
[1736868121742,0.00516724,96732.0,96707.0,0.10422692]
[1736868121981,0.00516724,96726.0,96707.0,0.10422692]
[1736868122171,0.023,96725.0,96707.0,0.10422692]
[1736868122598,0.023,96725.0,96698.0,0.09718607]
[1736868122599,0.00516724,96720.0,96699.0,0.01030806]
[1736868122724,0.023,96712.0,96700.0,0.10422692]
[1736868123130,0.023,96712.0,96700.0,0.10452692]
[1736868123748,0.023,96706.0,96700.0,0.0093]
[1736868124188,0.023,96706.0,96700.0,0.009]
[1736868125198,0.023,96706.0,96700.0,0.004]
[1736868125443,0.001,96706.0,96701.0,0.10422692]
[1736868125640,0.001,96706.0,96700.0,0.002]
[1736868125816,0.023,96706.0,96698.0,0.00135331]
[1736868126158,0.024,96706.0,96700.0,0.004]
[1736868126401,0.023,96706.0,96700.0,0.002]
[1736868126598,0.02816724,96706.0,96701.0,0.002]
[1736868126960,0.02816724,96706.0,96700.0,0.001]
[1736868127156,0.02816724,96701.0,96700.0,0.001]
[1736868128526,0.02816724,96701.0,96700.0,0.002]
[1736868128725,0.02816724,96701.0,96700.0,0.001]
[1736868128901,0.00516724,96699.0,96698.0,0.00135331]
[1736868129690,0.02816724,96699.0,96698.0,0.00135331]
[1736868130046,0.023,96699.0,96698.0,0.00135331]
[1736868130248,0.02816724,96699.0,96698.0,0.00135331]
[1736868130401,0.023,96699.0,96698.0,0.00135331]
[1736868130585,0.00516724,96716.0,96698.0,0.10558023]
[1736868130787,0.00516724,96715.0,96698.0,0.10558023]
[1736868131011,0.00179634,96729.0,96698.0,0.10558023]
[1736868131012,0.00516724,96721.0,96700.0,0.31379902]
[1736868131245,0.00516724,96721.0,96700.0,0.10422692]
[1736868131460,0.00516724,96723.0,96702.0,0.20682]
[1736868131666,0.00179634,96729.0,96709.0,0.31379902]
[1736868131876,0.00179634,96729.0,96710.0,0.58031711]
[1736868132301,0.00179634,96729.0,96720.0,0.206782]
[1736868132473,0.00179634,96729.0,96719.0,0.31379902]
[1736868132474,0.00179634,96729.0,96721.0,0.10422692]
[1736868132896,0.00179634,96729.0,96710.0,0.207103]
[1736868133097,0.023,96728.0,96712.0,0.206799]
[1736868133259,0.00579634,96729.0,96713.0,0.39421571]
[1736868133437,0.00579634,96729.0,96719.0,0.2034222]
[1736868133813,0.00579634,96729.0,96720.0,0.10422692]
[1736868134726,0.023,96728.0,96703.0,0.15]
[1736868135033,0.00179634,96729.0,96721.0,0.002]
[1736868135034,0.023,96724.0,96721.0,0.002]
[1736868135444,0.00179634,96729.0,96711.0,0.206801]
[1736868135647,0.00279634,96729.0,96721.0,0.005]
[1736868135866,0.00279634,96729.0,96719.0,0.2034222]
[1736868135867,0.00179634,96729.0,96722.0,0.10422692]
[1736868136515,0.023,96728.0,96722.0,0.10422692]
[1736868136654,0.023,96728.0,96710.0,0.2034222]
[1736868136860,0.023,96728.0,96711.0,0.12983364]
[1736868137262,0.023,96728.0,96711.0,0.10452692]
[1736868137767,0.023,96728.0,96711.0,0.10422692]
[1736868138251,0.023,96728.0,96711.0,0.005]
[1736868138252,0.023,96726.0,96711.0,0.005]
[1736868138581,0.00516724,96724.0,96722.0,0.003]
[1736868138977,0.00516724,96724.0,96700.0,0.2034222]
[1736868139174,0.00516724,96724.0,96701.0,0.12573896]
[1736868139392,0.00516724,96724.0,96711.0,0.006]
[1736868139648,0.00516724,96724.0,96711.0,0.10422692]
[1736868139822,0.023,96726.0,96712.0,0.10422692]
[1736868140021,0.001,96724.0,96715.0,0.206793]
[1736868140226,0.001,96724.0,96716.0,0.19135083]
[1736868140450,0.001,96724.0,96710.0,0.2034222]
[1736868140605,0.001,96724.0,96705.0,0.0003]
[1736868140812,0.00516724,96710.0,96705.0,0.0003]
[1736868141014,0.02816724,96706.0,96705.0,0.0003]
[1736868141447,0.00129261,96719.0,96689.0,0.0008552]
[1736868141448,0.02816724,96699.0,96690.0,0.2034222]
[1736868141630,0.02816724,96699.0,96689.0,0.0008552]
[1736868141832,0.08660323,96699.0,96689.0,0.0008552]
[1736868142075,0.10906724,96690.0,96689.0,0.00100469]
[1736868142282,0.21329416,96690.0,96689.0,0.00100469]
[1736868143095,0.10906724,96690.0,96689.0,0.00100469]
[1736868143268,0.10906724,96690.0,96689.0,0.00200469]
[1736868143474,0.10906724,96690.0,96689.0,0.00100469]
[1736868143856,0.11006724,96690.0,96689.0,0.00100469]
[1736868144056,0.22543018,96690.0,96689.0,0.00100469]
[1736868144464,0.11006724,96690.0,96689.0,0.00100469]
[1736868144666,0.1049,96690.0,96689.0,0.00100469]
[1736868144868,0.0819,96690.0,96689.0,0.00100469]
[1736868145077,0.001,96690.0,96689.0,0.10623161]
[1736868145487,0.001,96690.0,96689.0,1.60623161]
[1736868145703,0.0474,96714.0,96690.0,0.206846]
[1736868145879,0.0474,96714.0,96704.0,0.2034222]
[1736868146190,0.00516724,96711.0,96704.0,0.2034222]
[1736868146999,0.00516724,96711.0,96691.0,0.10422692]
[1736868147205,0.023,96710.0,96691.0,0.10422692]
[1736868147563,0.023,96710.0,96690.0,0.2034222]
[1736868147564,0.023,96699.0,96690.0,0.2034222]
[1736868147773,0.023,96699.0,96689.0,0.00700469]
[1736868147973,0.023,96691.0,96689.0,0.00100469]
[1736868148176,0.0809,96690.0,96689.0,0.00100469]
[1736868148323,0.1039,96690.0,96689.0,0.00100469]
[1736868148730,0.11480672,96690.0,96689.0,0.00100469]
[1736868148932,0.10906724,96690.0,96689.0,0.00100469]
[1736868149660,0.26069416,96690.0,96689.0,0.00100469]
[1736868149863,0.26169416,96690.0,96689.0,0.00700469]
[1736868150016,0.26169416,96690.0,96689.0,0.00900469]
[1736868150642,0.26169416,96690.0,96689.0,0.00700469]
[1736868150839,0.15746724,96690.0,96689.0,0.00700469]
[1736868151041,0.15746724,96690.0,96689.0,0.00100469]
[1736868151042,0.15646724,96690.0,96689.0,0.00100469]
[1736868151963,0.15646724,96690.0,96689.0,0.00200469]
[1736868152175,0.1513,96690.0,96689.0,0.00200469]
[1736868152356,0.15646724,96690.0,96689.0,0.00200469]
[1736868152551,0.1513,96690.0,96689.0,0.00200469]
[1736868152902,0.0809,96703.0,96689.0,0.00200469]
[1736868153113,0.0809,96703.0,96693.0,0.2034222]
[1736868153257,0.00516724,96696.0,96694.0,0.02054269]
[1736868153461,0.023,96702.0,96689.0,0.00200469]
[1736868153660,0.0809,96703.0,96690.0,0.10422692]
[1736868153884,0.0809,96703.0,96693.0,0.2034222]
[1736868154134,0.0839,96703.0,96693.0,0.2034222]
[1736868154333,0.003,96703.0,96694.0,0.10422692]
[1736868154527,0.003,96703.0,96695.0,0.23770038]
[1736868154730,0.003,96703.0,96693.0,0.2034222]
[1736868154731,0.007,96703.0,96696.0,0.10422692]
[1736868154903,0.023,96702.0,96693.0,0.2034222]
[1736868155720,0.023,96692.0,96689.0,0.00100469]
[1736868155915,0.00516724,96691.0,96689.0,0.00100469]
[1736868156116,0.03055672,96690.0,96689.0,0.00100469]
[1736868156361,0.023,96690.0,96689.0,0.00100469]
[1736868156852,0.00516724,96692.0,96689.0,0.00100469]
[1736868157262,0.023,96696.0,96689.0,0.00100469]
[1736868157263,0.023,96690.0,96689.0,0.00100469]
[1736868158432,0.02816724,96690.0,96689.0,0.00100469]
[1736868158962,0.02816724,96690.0,96689.0,0.00200469]
[1736868159340,0.13239416,96690.0,96689.0,0.00200469]
[1736868159563,0.37098016,96690.0,96689.0,0.00200469]
[1736868160599,0.37098016,96690.0,96689.0,0.00100469]
[1736868160738,0.36329416,96690.0,96689.0,0.00200469]
[1736868161196,0.00516724,96673.0,96650.0,0.2034222]
[1736868161398,0.023,96672.0,96650.0,0.2034222]
[1736868161764,0.023,96672.0,96660.0,0.2034222]
[1736868162370,0.023,96672.0,96669.0,0.0088555]
[1736868162617,0.001,96673.0,96669.0,0.0118555]
[1736868162981,0.001,96673.0,96669.0,0.0088555]
[1736868163397,0.001,96673.0,96669.0,0.0118555]
[1736868163398,0.00616724,96673.0,96669.0,0.0118555]
[1736868164366,0.00516724,96673.0,96669.0,0.0038555]
[1736868164621,0.001,96672.0,96669.0,0.0098555]
[1736868164968,0.00516724,96673.0,96669.0,0.0038555]
[1736868165168,0.00516724,96673.0,96669.0,0.0098555]
[1736868165546,0.00516724,96673.0,96669.0,0.0008555]
[1736868165746,0.00516724,96673.0,96669.0,0.0038555]
[1736868165944,0.001,96672.0,96669.0,0.0098555]
[1736868166320,0.00516724,96673.0,96669.0,0.0008555]
[1736868166527,0.00516724,96673.0,96669.0,0.0038555]
[1736868166727,0.15496724,96670.0,96669.0,0.0038555]
[1736868166943,0.28870688,96670.0,96669.0,0.0038555]
[1736868167150,0.28741358,96670.0,96669.0,0.0008555]
[1736868167326,0.43741358,96670.0,96669.0,0.0008555]
[1736868167528,0.43741358,96670.0,96669.0,0.0108555]
[1736868167949,0.43741358,96670.0,96669.0,0.0038555]
[1736868168126,0.44541358,96670.0,96669.0,0.0048555]
[1736868168531,0.43741358,96670.0,96669.0,0.0038555]
[1736868168731,0.44641358,96670.0,96669.0,0.0048555]
[1736868169330,0.44641358,96670.0,96669.0,0.0018555]
[1736868169555,0.45041358,96670.0,96669.0,0.0018555]
[1736868169907,0.44641358,96670.0,96669.0,0.0018555]
[1736868170112,0.77161358,96670.0,96669.0,0.0018555]
[1736868170317,0.74739416,96670.0,96669.0,0.0018555]
[1736868170726,0.00516724,96659.0,96614.0,7e-05]
[1736868170926,0.10566724,96633.0,96614.0,7e-05]
[1736868171124,0.20989416,96633.0,96614.0,7e-05]
[1736868171325,0.25919416,96633.0,96614.0,7e-05]
[1736868172037,0.25919416,96633.0,96632.0,0.00100502]
[1736868172241,0.41319416,96633.0,96632.0,0.00100502]
[1736868172449,0.40919416,96633.0,96632.0,0.00100502]
[1736868172875,0.41319416,96633.0,96632.0,0.00100502]
[1736868173077,0.41619416,96633.0,96632.0,0.00100502]
[1736868173471,0.41319416,96633.0,96632.0,0.00100502]
[1736868173671,0.47657327,96633.0,96632.0,0.00100502]
[1736868173839,0.47857327,96633.0,96632.0,0.00100502]
[1736868175330,0.023,96632.0,96614.0,7e-05]
[1736868175535,0.02816724,96615.0,96614.0,0.00056861]
[1736868176102,0.13239416,96615.0,96614.0,0.00056861]
[1736868176304,0.37313358,96615.0,96614.0,0.00056861]
[1736868176675,0.35989416,96615.0,96614.0,0.00056861]
[1736868177710,0.40919416,96615.0,96614.0,0.00056861]
[1736868177941,0.50919416,96615.0,96614.0,0.00056861]
[1736868178353,0.25516724,96611.0,96610.0,0.0008553]
[1736868178525,0.28239416,96611.0,96610.0,0.0008553]
[1736868178736,0.37864504,96611.0,96610.0,0.0008553]
[1736868179351,0.47864504,96611.0,96610.0,0.0008553]
[1736868179718,0.48964504,96611.0,96610.0,0.0008553]
[1736868180102,0.00516724,96593.0,96592.0,0.0008539]
[1736868180310,0.25939416,96593.0,96592.0,0.00100351]
[1736868180866,0.308463,96593.0,96592.0,0.00100351]
[1736868181428,0.28239416,96593.0,96592.0,0.00100351]
[1736868181771,0.02816724,96593.0,96592.0,0.00100351]
[1736868182375,0.00516724,96593.0,96592.0,0.00100351]
[1736868183159,0.00468341,96593.0,96592.0,0.00100351]
[1736868184912,0.13191033,96593.0,96592.0,0.00100351]
[1736868185142,0.20652515,96593.0,96592.0,0.00100351]
[1736868185694,0.63512515,96593.0,96592.0,0.00100351]
[1736868185894,0.02768341,96573.0,96541.0,0.014714]
[1736868186100,0.13191033,96573.0,96541.0,0.014714]
[1736868186319,0.13191033,96573.0,96540.0,0.01049457]
[1736868186320,0.13191033,96573.0,96540.0,0.2034222]
[1736868186521,0.13191033,96573.0,96540.0,0.2181362]
[1736868186701,0.02768341,96573.0,96550.0,0.2034222]
[1736868187544,0.02768341,96573.0,96542.0,0.414325]
[1736868188309,0.13191033,96573.0,96539.0,0.01031759]
[1736868188499,0.13391033,96573.0,96540.0,0.2311052]
[1736868188999,0.30030136,96573.0,96536.0,0.02121374]
[1736868189198,0.30030136,96573.0,96535.0,0.0008539]
[1736868189199,0.42430136,96573.0,96535.0,0.0008539]
[1736868189445,0.5345879,96573.0,96535.0,0.0008539]
[1736868189630,0.4335879,96573.0,96535.0,0.0008539]
[1736868190024,0.4365879,96573.0,96535.0,0.0008539]
[1736868190226,0.42430136,96573.0,96535.0,0.0008539]
[1736868190432,0.43138136,96573.0,96535.0,0.0008539]
[1736868190863,0.26091033,96573.0,96550.0,0.2034222]
[1736868191041,0.26091033,96573.0,96540.0,0.2034222]
[1736868191220,0.25791033,96573.0,96540.0,0.2034222]
[1736868191423,0.41091033,96573.0,96535.0,0.0008539]
[1736868191630,0.41291033,96573.0,96535.0,0.0008539]
[1736868191853,0.40991033,96573.0,96535.0,0.0008539]
[1736868192080,0.40991033,96573.0,96540.0,0.2034222]
[1736868192081,0.30868341,96573.0,96540.0,0.2034222]
[1736868192287,0.30868341,96573.0,96544.0,0.207159]
[1736868192288,0.09228341,96573.0,96544.0,0.207159]
[1736868192743,0.11528341,96573.0,96550.0,0.2034222]
[1736868192864,0.0474,96588.0,96544.0,0.207159]
[1736868192865,0.00468341,96580.0,96560.0,0.218137]
[1736868193070,0.00468341,96581.0,96570.0,0.2034222]
[1736868193265,0.004,96573.0,96570.0,0.2034222]
[1736868193475,0.004,96573.0,96563.0,0.2034222]
[1736868194445,0.012,96573.0,96563.0,0.2034222]
[1736868194669,0.004,96573.0,96567.0,0.01024232]
[1736868194855,0.004,96573.0,96560.0,0.0147148]
[1736868195078,0.005,96573.0,96560.0,0.218137]
[1736868195816,0.02768341,96576.0,96560.0,0.218137]
[1736868195998,0.15129431,96596.0,96560.0,0.218137]
[1736868195999,0.00468341,96578.0,96560.0,0.218137]
[1736868196232,0.0786,96597.0,96560.0,0.218137]
[1736868196233,0.001,96573.0,96568.0,0.2034222]
[1736868197143,0.001,96573.0,96572.0,0.0028539]
[1736868197513,0.0786,96597.0,96572.0,0.0008539]
[1736868197514,0.023,96596.0,96572.0,0.0008539]
[1736868197714,0.01028942,96595.0,96573.0,0.10422692]
[1736868197934,0.3252,96636.0,96580.0,0.2034222]
[1736868197935,0.0822,96610.0,96580.0,0.2034222]
[1736868198317,0.0822,96610.0,96587.0,0.2034222]
[1736868198563,0.0822,96610.0,96581.0,0.10422692]
[1736868198761,0.00841429,96609.0,96581.0,0.10422692]
[1736868198965,0.001,96595.0,96590.0,0.2034222]
[1736868199162,0.001,96595.0,96581.0,0.10422692]
[1736868199393,0.001,96596.0,96590.0,0.10422692]
[1736868199588,0.001,96596.0,96591.0,0.10422692]
[1736868199781,0.03,96601.0,96591.0,0.10422692]
[1736868201255,0.031,96601.0,96591.0,0.10422692]
[1736868201375,0.031,96601.0,96591.0,0.12489248]
[1736868202156,0.031,96601.0,96591.0,0.12549248]
[1736868202552,0.03,96601.0,96591.0,0.12549248]
[1736868202855,0.03,96601.0,96591.0,0.10582692]
[1736868203162,0.03,96601.0,96591.0,0.11509866]
[1736868203460,0.00194286,96611.0,96592.0,0.44503691]
[1736868203615,0.00194286,96611.0,96600.0,0.2034222]
[1736868203815,0.001,96601.0,96591.0,0.01187174]
[1736868204031,0.001,96601.0,96591.0,0.0016]
[1736868204457,0.001,96601.0,96591.0,0.0006]
[1736868204846,0.00279466,96601.0,96591.0,0.0006]
[1736868205055,0.023,96594.0,96591.0,0.0006]
[1736868205467,0.02768341,96592.0,96591.0,0.0006]
[1736868205667,0.023,96591.0,96570.0,0.2034222]
[1736868205863,0.023,96591.0,96573.0,0.10422692]
[1736868206097,0.00279466,96601.0,96580.0,0.2034222]
[1736868206300,0.00468341,96591.0,96580.0,0.2034222]
[1736868206691,0.00468341,96590.0,96580.0,0.2034222]
[1736868206909,0.00468341,96590.0,96573.0,0.10422692]
[1736868207073,0.023,96589.0,96573.0,0.10422692]
[1736868207292,0.023,96589.0,96573.0,0.10522692]
[1736868208913,0.023,96589.0,96573.0,0.10422692]
[1736868209161,0.00468341,96590.0,96573.0,0.10422692]
[1736868209576,0.023,96589.0,96580.0,0.2034222]
[1736868209799,0.00468341,96590.0,96580.0,0.2034222]
[1736868210023,0.00179466,96601.0,96581.0,0.10422692]
[1736868210248,0.00179466,96601.0,96590.0,0.2034222]
[1736868210769,0.023,96600.0,96590.0,0.2034222]
[1736868211763,0.023,96600.0,96581.0,0.10422692]
[1736868212785,0.024,96600.0,96581.0,0.10422692]
[1736868212986,0.024,96600.0,96581.0,0.13499183]
[1736868213181,0.024,96600.0,96581.0,0.10422692]
[1736868213646,0.025,96600.0,96581.0,0.10422692]
[1736868213789,0.002,96600.0,96590.0,0.2034222]
[1736868213998,0.001,96600.0,96591.0,0.10422692]
[1736868214607,0.00179466,96601.0,96591.0,0.10422692]
[1736868215043,0.001,96600.0,96591.0,0.10422692]
[1736868215295,0.00179466,96601.0,96591.0,0.10422692]
[1736868215507,0.001,96600.0,96591.0,0.10422692]
[1736868215758,0.00179466,96601.0,96592.0,0.207056]
[1736868215901,0.001,96600.0,96593.0,0.10422692]
[1736868216107,0.001,96600.0,96584.0,0.01023589]
[1736868216308,0.024,96600.0,96585.0,0.10422692]
[1736868216545,0.023,96600.0,96585.0,0.10422692]